bitfinex/quotes_BTCUSD_20251219
["timestamp","ask_amount","ask_price","bid_price","bid_amount"]
[1766162959383,0.00572,88408.0,88399.0,0.01131234]
[1766162959557,0.00572,88408.0,88398.0,0.01131247]
[1766162959713,0.00572,88408.0,88397.0,0.0113126]
[1766162960360,0.00572,88408.0,88398.0,0.01131247]
[1766162960519,0.00572,88408.0,88393.0,0.00572]
[1766162960727,0.01703119,88408.0,88393.0,0.00572]
[1766162960923,0.45600132,88407.0,88393.0,0.00572]
[1766162961143,0.00572,88408.0,88392.0,0.01381324]
[1766162961144,0.44469,88405.0,88392.0,0.01381324]
[1766162961316,0.44469,88405.0,88392.0,0.07037939]
[1766162961534,0.44469,88405.0,88397.0,0.0113126]
[1766162961730,0.00572,88408.0,88394.0,0.05656368]
[1766162961960,0.00572,88408.0,88396.0,0.01131272]
[1766162962469,0.00572,88408.0,88395.0,0.06787705]
[1766162962719,0.00572,88408.0,88396.0,0.01131272]
[1766162962904,0.00572,88408.0,88398.0,0.01131247]
[1766162963105,0.00572,88408.0,88401.0,0.01131208]
[1766162963311,0.00572,88408.0,88403.0,0.06787087]
[1766162963467,0.00572,88408.0,88403.0,0.01131183]
[1766162963671,0.00572,88408.0,88402.0,0.06787174]
[1766162963972,0.00572,88408.0,88404.0,0.0113117]
[1766162964190,0.00572,88408.0,88405.0,0.01131157]
[1766162964394,0.00572,88408.0,88405.0,0.06786884]
[1766162964597,0.00572,88408.0,88402.0,0.01131196]
[1766162965304,0.00010854,88415.0,88406.0,0.43429]
[1766162965479,0.00010854,88415.0,88408.0,0.06786655]
[1766162965683,0.00572,88417.0,88407.0,0.44560132]
[1766162965860,0.00572,88417.0,88406.0,0.48889]
[1766162966066,0.00572,88417.0,88407.0,0.01131132]
[1766162966260,0.00572,88417.0,88407.0,0.06786774]
[1766162966541,0.00572,88417.0,88408.0,0.01131119]
[1766162966746,0.00572,88417.0,88406.0,0.48899854]
[1766162966944,0.00572,88417.0,88406.0,0.50030998]
[1766162967167,0.00572,88417.0,88408.0,0.06786715]
[1766162967577,0.00572,88417.0,88411.0,0.0113108]
[1766162967974,0.00572,88417.0,88407.0,0.48889]
[1766162968179,0.00572,88417.0,88412.0,0.01131068]
[1766162968384,0.00572,88417.0,88411.0,0.06786484]
[1766162968584,0.00572,88417.0,88411.0,0.0678646]
[1766162968943,0.00572,88417.0,88413.0,0.01131055]
[1766162969303,0.00572,88417.0,88411.0,0.06786483]
[1766162969662,0.0025,88427.0,88412.0,0.06786291]
[1766162969869,0.00572,88426.0,88412.0,0.01131068]
[1766162970076,0.00572,88425.0,88414.0,0.50020042]
[1766162970500,0.00572,88425.0,88416.0,0.01131017]
[1766162970722,0.00572,88429.0,88422.0,0.06785583]
[1766162970967,0.80231291,88440.0,88414.0,0.00572]
[1766162970968,0.44469,88440.0,88421.0,0.00572]
[1766162971171,0.44469,88440.0,88426.0,0.01130889]
[1766162971367,0.01130722,88439.0,88422.0,0.55674639]
[1766162971571,0.01130722,88439.0,88422.0,0.5001994]
[1766162971778,0.01130722,88439.0,88423.0,0.01130927]
[1766162971978,0.0025,88438.0,88422.0,0.55674617]
[1766162972391,0.0025,88438.0,88423.0,0.01130927]
[1766162972638,0.0025,88438.0,88424.0,0.05654573]
[1766162972854,0.01380735,88438.0,88422.0,0.55674617]
[1766162973042,0.001099,88424.0,88422.0,0.00572]
[1766162973283,0.51233489,88430.0,88422.0,0.00572]
[1766162973612,0.01130876,88427.0,88417.0,0.0025]
[1766162973810,0.01130876,88427.0,88401.0,0.08034495]
[1766162973811,0.46056,88420.0,88406.0,0.01141998]
[1766162974025,0.44469,88419.0,88409.0,0.00572]
[1766162975395,0.06764489,88415.0,88409.0,0.00572]
[1766162975780,0.44469,88419.0,88407.0,0.0025]
[1766162975942,0.06764489,88416.0,88407.0,0.0025]
[1766162976150,0.001099,88407.0,88392.0,0.01131324]
[1766162976357,0.42558,88409.0,88394.0,0.06787781]
[1766162976655,0.42558,88409.0,88396.0,0.01131272]
[1766162976856,0.42558,88409.0,88396.0,0.06787635]
[1766162977129,0.42558,88409.0,88397.0,0.0113126]
[1766162977339,0.42558,88409.0,88397.0,0.06787552]
[1766162977621,0.42558,88409.0,88396.0,0.06787635]
[1766162977842,0.42558,88409.0,88397.0,0.0113126]
[1766162978049,0.42558,88409.0,88396.0,0.06787635]
[1766162978231,0.42558,88407.0,88394.0,0.0025]
[1766162978458,0.42558,88407.0,88394.0,0.01381298]
[1766162978766,0.42558,88407.0,88396.0,0.0025]
[1766162978918,0.42558,88407.0,88398.0,0.0025]
[1766162979120,0.00572,88411.0,88400.0,0.01131221]
[1766162979322,0.00572,88411.0,88398.0,0.01381247]
[1766162979700,0.00572,88411.0,88398.0,0.0025]
[1766162979892,0.4691,88409.0,88398.0,0.0025]
[1766162981120,0.00572,88411.0,88398.0,0.01381247]
[1766162981323,0.00572,88411.0,88399.0,0.01131234]
[1766162981464,0.00572,88411.0,88400.0,0.01131221]
[1766162981675,0.00572,88411.0,88406.0,0.01131144]
[1766162981871,0.00572,88416.0,88411.0,0.0113108]
[1766162982073,0.0025,88419.0,88411.0,0.4924608]
[1766162982291,0.0025,88419.0,88411.0,0.48115]
[1766162982700,0.00572,88420.0,88411.0,0.48115]
[1766162983304,0.00572,88420.0,88411.0,0.54901475]
[1766162983505,0.00572,88420.0,88415.0,0.01131029]
[1766162983726,0.00572,88420.0,88411.0,0.54901433]
[1766162983973,0.00572,88420.0,88411.0,0.48115]
[1766162984106,0.001099,88411.0,88401.0,0.0025]
[1766162984308,0.426679,88411.0,88401.0,0.00260856]
[1766162984507,0.42558,88411.0,88401.0,0.00260856]
[1766162985244,0.001099,88401.0,88396.0,0.00572]
[1766162985688,0.42558,88408.0,88396.0,0.00572]
[1766162986176,0.06764489,88402.0,88389.0,0.01]
[1766162986385,0.06764489,88402.0,88384.0,0.43758426]
[1766162986386,0.06764489,88402.0,88392.0,0.00572]
[1766162986966,0.06764489,88402.0,88366.0,0.05001839]
[1766162987171,0.06764489,88402.0,88360.0,0.4]
[1766162987172,0.4691,88397.0,88383.0,0.05657164]
[1766162987419,0.00572,88398.0,88386.0,0.06788388]
[1766162987563,0.00572,88398.0,88388.0,0.01131375]
[1766162987769,0.00572,88398.0,88393.0,0.01131311]
[1766162988078,0.00572,88403.0,88393.0,0.01131311]
[1766162988277,0.0025,88403.0,88392.0,0.48115]
[1766162989841,0.0025,88403.0,88395.0,0.01131285]
[1766162990059,0.00822,88409.0,88396.0,0.01131272]
[1766162990458,0.00822,88409.0,88397.0,0.0113126]
[1766162990777,0.44511106,88409.0,88393.0,0.01131311]
[1766162990976,0.01131119,88408.0,88392.0,0.54902901]
[1766162991172,0.50166692,88409.0,88393.0,0.01131311]
[1766162991351,0.44511106,88409.0,88393.0,0.01131311]
[1766162991693,0.4338,88409.0,88396.0,0.05656331]
[1766162991878,0.4338,88409.0,88392.0,0.06787939]
[1766162991879,0.44511106,88409.0,88392.0,0.06787939]
[1766162992104,0.01131132,88407.0,88391.0,0.49246336]
[1766162992272,0.44511106,88409.0,88391.0,0.48115]
[1766162992485,0.01131119,88408.0,88391.0,0.48115]
[1766162992654,0.01131144,88406.0,88391.0,0.48115]
[1766162992856,0.42558,88405.0,88391.0,0.49246336]
[1766162993087,0.01953106,88409.0,88395.0,0.067877]
[1766162993088,0.00822,88409.0,88395.0,0.067877]
[1766162993285,0.00822,88409.0,88395.0,0.49246285]
[1766162994009,0.00822,88409.0,88396.0,0.06787612]
[1766162994253,0.06477536,88409.0,88395.0,0.48115]
[1766162994558,0.42558,88408.0,88392.0,0.06787924]
[1766162994769,0.01131144,88406.0,88390.0,0.49246349]
[1766162994989,0.001099,88392.0,88390.0,0.00572]
[1766162995192,0.01131349,88390.0,88383.0,0.0025]
[1766162995359,0.01131324,88392.0,88383.0,0.0025]
[1766162995572,0.49345988,88393.0,88383.0,0.0025]
[1766162995776,0.42558,88393.0,88383.0,0.0025]
[1766162996627,0.42558,88393.0,88383.0,0.01381439]
[1766162996765,0.42558,88393.0,88383.0,0.0025]
[1766162996962,0.01131349,88390.0,88378.0,0.00572]
[1766162997166,0.42558,88388.0,88378.0,0.00572]
[1766162997591,0.42558,88388.0,88371.0,0.06789437]
[1766162997592,0.001099,88378.0,88373.0,0.00572]
[1766162997793,0.001099,88378.0,88373.0,0.0058285]
[1766162997965,0.42558,88384.0,88374.0,0.01131554]
[1766162998151,0.42558,88387.0,88376.0,0.01131528]
[1766162998509,0.00572,88384.0,88373.0,0.0058285]
[1766162998658,0.00572,88384.0,88374.0,0.01131554]
[1766162998857,0.00572,88384.0,88375.0,0.0025]
[1766162999478,0.00572,88384.0,88377.0,0.0025]
[1766162999681,0.00572,88384.0,88377.0,0.07039059]
[1766162999936,0.00572,88384.0,88377.0,0.01381516]
[1766163000094,0.00572,88384.0,88377.0,0.0025]
[1766163000269,0.00572,88389.0,88381.0,0.42627]
[1766163000682,0.00572,88389.0,88383.0,0.05657171]
[1766163000885,0.00572,88389.0,88381.0,0.42627]
[1766163001087,0.001099,88381.0,88373.0,0.0001085]
[1766163001291,0.001099,88381.0,88374.0,0.00572]
[1766163001680,0.436894,88386.0,88374.0,0.00572]
[1766163001889,0.0678796,88392.0,88374.0,0.06229765]
[1766163002094,0.4313,88391.0,88375.0,0.01131541]
[1766163002303,0.4313,88391.0,88378.0,0.01131503]
[1766163002520,0.4691,88389.0,88374.0,0.00572]
[1766163002721,0.42558,88388.0,88374.0,0.00572]
[1766163002921,0.01131349,88390.0,88374.0,0.49818554]
[1766163003126,0.07360049,88391.0,88375.0,0.0025]
[1766163003535,0.01131349,88390.0,88375.0,0.0025]
[1766163003760,0.42558,88386.0,88375.0,0.0025]
[1766163004024,0.52013025,88386.0,88375.0,0.0025]
[1766163004233,0.46521413,88385.0,88375.0,0.0025]
[1766163004444,0.01131464,88381.0,88366.0,0.48115]
[1766163004652,0.0001085,88381.0,88371.0,0.00572]
[1766163004873,5e-07,88381.0,88373.0,0.01131567]
[1766163005048,5e-07,88381.0,88371.0,0.00572]
[1766163005483,5e-07,88381.0,88374.0,0.01131554]
[1766163005685,5e-07,88381.0,88373.0,0.06789383]
[1766163005822,5e-07,88381.0,88377.0,0.01131516]
[1766163006028,5e-07,88381.0,88380.0,0.95792388]
[1766163006439,0.00572,88393.0,88388.0,0.05656823]
[1766163006648,0.4539,88408.0,88396.0,0.01131272]
[1766163006855,0.00010861,88408.0,88401.0,0.01131208]
[1766163007093,0.00010861,88408.0,88398.0,0.47488]
[1766163007608,0.00010861,88408.0,88399.0,0.01131234]
[1766163007806,0.00010861,88408.0,88398.0,0.54275461]
[1766163008167,0.00010861,88408.0,88397.0,0.00572]
[1766163008370,0.4539,88406.0,88397.0,0.00572]
[1766163008522,0.01131157,88405.0,88389.0,0.01131362]
[1766163008741,0.46521183,88403.0,88390.0,0.00822]
[1766163008942,0.4539,88402.0,88390.0,0.00822]
[1766163009145,0.4539,88402.0,88392.0,0.06787917]
[1766163009344,0.00572,88404.0,88396.0,0.06787635]
[1766163009547,0.46356,88410.0,88390.0,0.43469]
[1766163009548,0.0025,88409.0,88404.0,0.000991]
[1766163009897,0.00572,88410.0,88404.0,0.000991]
[1766163010093,0.00572,88410.0,88403.0,0.47488]
[1766163010625,0.01131106,88409.0,88400.0,0.00572]
[1766163010858,0.000108,88403.0,88391.0,0.0025]
[1766163011096,0.454008,88403.0,88391.0,0.00260861]
[1766163011317,0.01131132,88407.0,88391.0,0.00260861]
[1766163011525,0.01131285,88395.0,88374.0,0.48619554]
[1766163011778,0.46356,88398.0,88377.0,0.0025]
[1766163011779,0.01131362,88389.0,88377.0,0.0025]
[1766163012006,0.06764489,88387.0,88370.0,0.06789625]
[1766163012208,0.06764489,88387.0,88371.0,0.07361541]
[1766163012633,0.00572,88390.0,88375.0,0.01131541]
[1766163012833,0.00572,88390.0,88376.0,0.0678917]
[1766163013030,0.88021425,88390.0,88373.0,0.47488]
[1766163013242,0.00572,88390.0,88373.0,0.48619567]
[1766163013438,0.00572,88390.0,88375.0,0.01131541]
[1766163013669,0.00572,88390.0,88377.0,0.42647]
[1766163013865,0.00572,88390.0,88372.0,0.22631553]
[1766163013866,0.00572,88389.0,88380.0,0.05657327]
[1766163014071,0.0025,88397.0,88389.0,0.000991]
[1766163014594,0.0025,88397.0,88385.0,0.53717015]
[1766163014744,0.4539,88396.0,88378.0,0.0025]
[1766163014954,0.4539,88396.0,88379.0,0.00572]
[1766163014955,0.4539,88392.0,88379.0,0.00572]
[1766163015366,0.46356,88395.0,88379.0,0.00572]
[1766163015568,0.01131362,88389.0,88374.0,0.0025]
[1766163015768,0.4539,88388.0,88378.0,0.00572]
[1766163015987,0.000108,88378.0,88374.0,0.0025]
[1766163016219,0.4539,88383.0,88371.0,0.0025]
[1766163016409,0.00572,88384.0,88371.0,0.0025]
[1766163016768,0.00572,88384.0,88374.0,0.0025]
[1766163016968,0.00572,88384.0,88376.0,0.0025]
[1766163017859,0.00572,88384.0,88376.0,0.07039166]
[1766163018032,0.00572,88384.0,88378.0,0.0025]
[1766163019019,0.00572,88384.0,88374.0,0.0025]
[1766163019217,0.00572,88384.0,88377.0,0.05907567]
[1766163019427,0.004729,88384.0,88379.0,0.0025]
[1766163019629,0.00572,88385.0,88379.0,0.0025]
[1766163020537,0.00572,88389.0,88379.0,0.0025]
[1766163020788,0.01131375,88388.0,88378.0,0.0025]
[1766163020996,0.001099,88378.0,88375.0,0.00572]
[1766163021386,0.43096,88386.0,88375.0,0.00572]
[1766163021998,0.001099,88375.0,88370.0,0.00572]
[1766163022215,0.43096,88367.0,88356.0,0.0001]
[1766163022407,0.01131631,88368.0,88353.0,0.00572]
[1766163022408,0.01131708,88362.0,88353.0,0.00572]
[1766163022609,0.01131708,88362.0,88348.0,0.08034495]
[1766163022610,0.43096,88359.0,88342.0,0.01]
[1766163022806,0.06764489,88358.0,88346.0,0.01131913]
[1766163022983,0.06764489,88358.0,88347.0,0.0025]
[1766163023356,0.00572,88361.0,88357.0,4.08e-06]
[1766163023485,0.00572,88361.0,88345.0,0.01]
[1766163023486,0.00572,88361.0,88346.0,0.06791464]
[1766163023686,0.00572,88361.0,88348.0,0.01131887]
[1766163024004,0.00572,88361.0,88344.0,0.05659693]
[1766163024210,0.43096,88358.0,88345.0,0.01]
[1766163024586,0.01703721,88361.0,88346.0,0.0025]
[1766163024789,0.00572,88361.0,88346.0,0.07041473]
[1766163025052,0.00572,88361.0,88348.0,0.0025]
[1766163025263,0.06764489,88353.0,88347.0,4.99e-06]
[1766163025475,0.29396347,88372.0,88336.0,0.0102]
[1766163025476,0.43096,88351.0,88336.0,0.0102]
[1766163025689,0.43096,88347.0,88336.0,0.06680194]
[1766163025932,0.43096,88347.0,88336.0,0.0102]
[1766163026162,0.43096,88347.0,88331.0,0.06792594]
[1766163026163,0.43096,88335.0,88307.0,0.08127975]
[1766163026399,0.49860489,88308.0,88284.0,0.01132708]
[1766163026614,0.43096,88299.0,88287.0,0.01132669]
[1766163026829,0.06764489,88306.0,88289.0,0.01132643]
[1766163026830,0.00572,88298.0,88289.0,0.01132643]
[1766163027040,0.011324,88308.0,88286.0,0.41067]
[1766163027252,0.01132374,88310.0,88286.0,0.01382682]
[1766163027253,0.01132464,88303.0,88286.0,0.01382682]
[1766163027456,0.01132438,88305.0,88286.0,0.0025]
[1766163027686,0.0003614,88303.0,88287.0,0.89529669]
[1766163027895,0.0113249,88301.0,88288.0,0.0025]
[1766163028105,0.43096,88302.0,88288.0,0.0025]
[1766163028323,0.43096,88302.0,88285.0,0.00572]
[1766163028535,0.0003614,88303.0,88286.0,0.4733]
[1766163028738,0.0003614,88303.0,88286.0,0.54126055]
[1766163028944,0.0003614,88303.0,88289.0,0.01132643]
[1766163029150,0.01168604,88303.0,88285.0,0.00572]
[1766163029354,0.06764489,88296.0,88282.0,0.00572]
[1766163029584,0.07897043,88296.0,88282.0,0.00572]
[1766163029783,0.06764489,88296.0,88282.0,0.00572]
[1766163030015,0.44228566,88295.0,88282.0,0.00572]
[1766163030236,0.00572,88298.0,88281.0,0.01382746]
[1766163030440,0.00572,88298.0,88286.0,0.0025]
[1766163030652,0.49926938,88303.0,88286.0,0.0025]
[1766163030653,0.0003614,88303.0,88290.0,0.88397]
[1766163030905,0.0003614,88303.0,88291.0,0.4733]
[1766163031123,0.00572,88310.0,88287.0,0.00572]
[1766163031340,0.09810664,88358.0,88287.0,0.00572]
[1766163031341,0.01132066,88334.0,88309.0,0.01132387]
[1766163031570,0.02131951,88343.0,88325.0,0.01132182]
[1766163031779,0.01,88343.0,88325.0,0.00572]
[1766163031983,0.44227951,88343.0,88325.0,0.06232861]
[1766163032186,0.44227951,88343.0,88325.0,0.01704182]
[1766163032391,0.30993,88342.0,88325.0,0.00572]
[1766163032598,0.43096,88344.0,88332.0,0.01132092]
[1766163032804,0.01131785,88356.0,88339.0,0.01132002]
[1766163033010,0.43096,88362.0,88329.0,0.0025]
[1766163033011,0.06790003,88366.0,88347.0,0.05659493]
[1766163033213,0.01131695,88363.0,88347.0,0.011319]
[1766163033421,0.01131682,88364.0,88346.0,0.01703913]
[1766163033627,0.01131695,88363.0,88346.0,0.01703913]
[1766163033830,0.01131708,88362.0,88346.0,0.00572]
[1766163034037,0.06790556,88358.0,88346.0,0.00572]
[1766163034248,0.01131823,88353.0,88332.0,0.01132092]
[1766163034454,0.01131823,88353.0,88325.0,0.00010856]
[1766163034455,0.30993,88353.0,88333.0,0.00822]
[1766163034658,0.00572,88353.0,88339.0,0.0025]
[1766163035087,0.00572,88359.0,88345.0,0.01131925]
[1766163035296,0.01131721,88361.0,88346.0,0.00572]
[1766163035657,0.0025,88360.0,88347.0,0.011319]
[1766163035839,0.00572,88364.0,88351.0,0.01131849]
[1766163036021,0.00572,88364.0,88349.0,0.01131874]
[1766163036228,0.0025,88363.0,88348.0,0.01131887]
[1766163036480,0.0025,88363.0,88349.0,0.01131874]
[1766163036679,0.0025,88363.0,88350.0,0.01131861]
[1766163036898,0.0025,88363.0,88347.0,0.47483]
[1766163036899,0.01381695,88363.0,88347.0,0.486149]
[1766163037064,0.0025,88363.0,88348.0,0.01131887]
[1766163037281,0.0025,88363.0,88351.0,0.01131849]
[1766163037510,0.0025,88363.0,88353.0,0.01131823]
[1766163037706,0.001401,88363.0,88356.0,0.01131785]
[1766163037909,0.001401,88363.0,88355.0,0.01131797]
[1766163038364,0.001401,88363.0,88354.0,0.00572]
[1766163038564,0.001099,88354.0,88346.0,0.01131913]
[1766163038732,0.001099,88354.0,88348.0,0.01131887]
[1766163038936,0.01131682,88364.0,88347.0,0.00572]
[1766163039131,0.01131695,88363.0,88347.0,0.017039]
[1766163039339,0.01131682,88364.0,88347.0,0.017039]
[1766163039544,0.01131759,88358.0,88348.0,0.00572]
[1766163039865,0.01131759,88358.0,88335.0,0.01]
[1766163039866,0.001099,88348.0,88335.0,0.01]
[1766163040105,0.00010846,88348.0,88335.0,0.01]
[1766163040278,0.06764489,88344.0,88334.0,0.00572]
[1766163040489,0.00010846,88348.0,88334.0,0.00572]
[1766163040646,0.01142733,88348.0,88334.0,0.00572]
[1766163040878,0.06764489,88344.0,88334.0,0.004621]
[1766163041091,0.06764489,88344.0,88327.0,0.01132156]
[1766163041092,0.00010846,88348.0,88337.0,0.01132028]
[1766163041279,0.00572,88353.0,88340.0,0.47483]
[1766163041481,0.00572,88353.0,88347.0,0.011319]
[1766163041681,0.00572,88359.0,88347.0,0.486149]
[1766163041903,0.00572,88359.0,88348.0,0.01131887]
[1766163042124,0.00572,88359.0,88347.0,0.54274391]
[1766163042321,0.00572,88364.0,88350.0,0.01131861]
[1766163042522,0.0025,88363.0,88348.0,0.01131887]
[1766163042928,0.0025,88363.0,88349.0,0.01131874]
[1766163043082,0.0025,88363.0,88348.0,0.48614887]
[1766163043284,0.0025,88363.0,88352.0,0.06791004]
[1766163043496,0.05658178,88368.0,88351.0,0.00572]
[1766163043697,0.01131644,88367.0,88351.0,0.00572]
[1766163043902,0.01131682,88364.0,88351.0,0.00572]
[1766163044109,0.06790118,88364.0,88351.0,0.00572]
[1766163044309,0.01131695,88363.0,88351.0,0.00572]
[1766163044530,0.01131669,88365.0,88351.0,0.00572]
[1766163044738,0.00572,88366.0,88351.0,0.00572]
[1766163045684,0.0025,88365.0,88352.0,0.01116933]
[1766163045845,0.0025,88365.0,88353.0,0.01131823]
[1766163046102,0.0025,88365.0,88354.0,0.0113181]
[1766163046325,0.0025,88365.0,88355.0,0.01131797]
[1766163046535,0.0025,88369.0,88359.0,0.01131746]
[1766163046742,0.00572,88370.0,88357.0,0.01131772]
[1766163046905,0.00572,88370.0,88357.0,0.01703772]
[1766163047276,0.00572,88370.0,88357.0,0.00572]
[1766163047433,0.30993,88377.0,88370.0,0.05657993]
[1766163047632,0.01131234,88399.0,88380.0,0.01131477]
[1766163047830,0.0003623,88399.0,88382.0,0.01131452]
[1766163048028,0.0003623,88399.0,88381.0,0.48055]
[1766163048029,0.0003623,88399.0,88383.0,0.01131439]
[1766163048416,0.0003623,88399.0,88384.0,0.01131426]
[1766163048610,0.0003623,88399.0,88376.0,0.22630394]
[1766163048611,0.001099,88384.0,88379.0,0.0025]
[1766163048818,0.0113149,88379.0,88362.0,0.42351]
[1766163049180,0.07895928,88383.0,88371.0,0.00572]
[1766163049346,0.01131452,88382.0,88371.0,0.00572]
[1766163049545,0.01131452,88382.0,88372.0,0.00572]
[1766163049713,0.06764489,88383.0,88372.0,0.00572]
[1766163049923,0.001099,88372.0,88363.0,0.01]
[1766163050122,0.001099,88372.0,88365.0,0.01]
[1766163050522,0.01131477,88380.0,88365.0,0.01]
[1766163050806,0.06764489,88383.0,88366.0,0.0025]
[1766163051037,0.06764489,88383.0,88370.0,0.0025]
[1766163051256,0.01131618,88369.0,88359.0,0.01]
[1766163051374,0.01131618,88369.0,88310.0,0.00099999]
[1766163051375,0.0113181,88354.0,88343.0,0.47233]
[1766163051582,0.01131849,88351.0,88343.0,0.47233]
[1766163051789,0.01131874,88349.0,88342.0,0.00572]
[1766163052055,0.011319,88347.0,88342.0,0.00572]
[1766163052391,0.01131836,88352.0,88342.0,0.004621]
[1766163052596,0.01131887,88348.0,88340.0,0.00572]
[1766163052792,0.01131836,88352.0,88340.0,0.00582846]
[1766163053014,0.45865746,88359.0,88341.0,0.05659886]
[1766163053181,0.01131785,88356.0,88340.0,0.00582846]
[1766163053386,0.01131785,88356.0,88341.0,0.0025]
[1766163053609,0.00572,88358.0,88341.0,0.0025]
[1766163053788,0.06790799,88355.0,88341.0,0.0025]
[1766163054407,0.01131836,88352.0,88341.0,0.0025]
[1766163054785,0.01131874,88349.0,88341.0,0.0025]
[1766163055075,0.06791258,88349.0,88341.0,0.0025]
[1766163055219,0.01131887,88348.0,88341.0,0.0025]
[1766163055427,0.01131849,88351.0,88341.0,0.0025]
[1766163056033,0.06790899,88354.0,88341.0,0.0025]
[1766163056210,0.01131861,88350.0,88341.0,0.0025]
[1766163056398,0.06791102,88351.0,88341.0,0.0025]
[1766163056605,0.01131874,88349.0,88341.0,0.0025]
[1766163056808,0.01131861,88350.0,88341.0,0.0025]
[1766163057432,0.01131874,88349.0,88348.0,0.41182895]
[1766163057637,0.067911,88351.0,88348.0,0.36692474]
[1766163058357,0.05659322,88350.0,88348.0,0.36692474]
[1766163058721,0.05659373,88349.0,88348.0,0.36692474]
[1766163059103,0.51498489,88353.0,88348.0,0.36692474]
[1766163059695,0.01131836,88352.0,88348.0,0.36692474]
[1766163060459,0.01131849,88351.0,88348.0,4.74e-06]
[1766163060693,0.07363097,88351.0,88348.0,4.74e-06]
[1766163060894,0.05659358,88350.0,88348.0,4.74e-06]
[1766163061270,0.07363097,88351.0,88348.0,4.74e-06]
[1766163061271,0.05659373,88349.0,88348.0,4.74e-06]
[1766163061470,0.50393373,88349.0,88348.0,4.74e-06]
[1766163061677,0.51451676,88349.0,88348.0,4.74e-06]
[1766163064037,0.00948403,88349.0,88348.0,4.74e-06]
[1766163064248,0.0025,88351.0,88348.0,4.74e-06]
[1766163064605,0.00572,88356.0,88348.0,4.74e-06]
[1766163065008,0.0025,88352.0,88348.0,4.74e-06]
[1766163065206,0.0025,88350.0,88348.0,4.74e-06]
[1766163065387,0.06764489,88349.0,88348.0,4.74e-06]
[1766163065724,0.01131951,88343.0,88340.0,3.2e-06]
[1766163065933,0.07363751,88343.0,88340.0,3.2e-06]
[1766163066336,0.05659886,88341.0,88340.0,3.2e-06]
[1766163066487,0.06792968,88327.0,88309.0,0.46312]
[1766163066691,0.01132182,88325.0,88309.0,0.46312]
[1766163067031,0.01132207,88323.0,88307.0,0.00572]
[1766163067250,0.0113222,88322.0,88307.0,0.00572]
[1766163067431,0.067934,88321.0,88307.0,0.00572]
[1766163067645,1.35270292,88320.0,88307.0,0.00572]
[1766163067817,0.01132259,88319.0,88307.0,0.00572]
[1766163068018,0.47692297,88316.0,88307.0,0.00572]
[1766163068184,0.01132361,88311.0,88307.0,0.00572]
[1766163068384,0.05661945,88309.0,88300.0,0.0025]
[1766163068608,0.01132207,88323.0,88303.0,0.01132464]
[1766163068808,0.0025,88326.0,88311.0,0.01132361]
[1766163069231,0.4656,88321.0,88310.0,0.01132374]
[1766163069437,0.4656,88321.0,88309.0,0.05661919]
[1766163069438,0.4656,88321.0,88309.0,0.01132387]
[1766163069615,0.4656,88321.0,88310.0,0.01132374]
[1766163069827,0.0025,88326.0,88311.0,0.94458]
[1766163069828,0.01132195,88324.0,88311.0,0.94458]
[1766163070256,0.01132195,88324.0,88311.0,0.48146]
[1766163070456,0.00572,88325.0,88312.0,0.01132348]
[1766163070884,0.01131861,88350.0,88328.0,0.01132143]
[1766163071117,0.07363262,88349.0,88331.0,0.01132105]
[1766163071325,0.00572,88349.0,88332.0,0.01132092]
[1766163071526,0.00572,88349.0,88331.0,0.01132105]
[1766163071527,0.01703874,88349.0,88331.0,0.01132105]
[1766163071687,0.01703874,88349.0,88331.0,0.06792618]
[1766163071890,0.01703874,88349.0,88330.0,0.01132118]
[1766163071891,0.0025,88346.0,88330.0,0.01132118]
[1766163072090,0.0025,88348.0,88333.0,0.01132079]
[1766163072367,0.0025,88348.0,88337.0,0.01132028]
[1766163072578,0.00572,88349.0,88348.0,0.001099]
[1766163072811,0.00572,88349.0,88339.0,0.0679201]
[1766163073279,0.0025,88356.0,88340.0,0.06791919]
[1766163073471,0.0025,88356.0,88342.0,0.01131964]
[1766163073472,0.00572,88355.0,88342.0,0.01131964]
[1766163073598,0.00572,88355.0,88341.0,0.01131977]
[1766163073802,0.00572,88355.0,88341.0,0.06791847]
[1766163074024,0.00572,88355.0,88342.0,0.01131964]
[1766163074186,0.00572,88355.0,88345.0,0.01131925]
[1766163074391,0.00572,88355.0,88343.0,0.06791699]
[1766163074744,0.00572,88355.0,88343.0,0.01131951]
[1766163074966,0.06764489,88354.0,88344.0,0.01131938]
[1766163075166,0.06764489,88354.0,88343.0,0.01131951]
[1766163075374,0.06764489,88354.0,88342.0,0.01131964]
[1766163077826,0.00572,88371.0,88358.0,0.48146]
[1766163078112,0.01703592,88371.0,88358.0,0.48146]
[1766163078281,0.0025,88370.0,88358.0,0.48146]
[1766163078907,0.0025,88370.0,88360.0,0.01131733]
[1766163079204,0.0025,88370.0,88358.0,0.49277759]
[1766163079522,0.0025,88370.0,88359.0,0.01131746]
[1766163079846,0.0025,88370.0,88358.0,0.48146]
[1766163080243,0.0025,88370.0,88360.0,0.01131733]
[1766163080527,0.0025,88370.0,88358.0,0.49277759]
[1766163080715,0.0025,88370.0,88359.0,0.01131746]
[1766163080918,0.0025,88370.0,88360.0,0.01131733]
[1766163081097,0.00572,88371.0,88365.0,0.01131669]
[1766163081302,0.0025,88376.0,88364.0,0.01131682]
[1766163081506,0.0025,88374.0,88365.0,0.06790012]
[1766163081691,0.0025,88374.0,88364.0,0.06790087]
[1766163081892,0.0025,88374.0,88366.0,0.01131656]
[1766163082092,0.0025,88374.0,88365.0,0.06790007]
[1766163082293,0.0025,88374.0,88362.0,0.06790202]
[1766163082526,0.00572,88375.0,88364.0,0.01131682]
[1766163082704,0.00572,88374.0,88365.0,0.01131669]
[1766163083160,0.0025,88378.0,88365.0,0.01131669]
[1766163083385,0.00572,88374.0,88365.0,0.01131669]
[1766163083562,0.0025,88378.0,88366.0,0.01131656]
[1766163083719,0.00572,88374.0,88368.0,0.01131631]
[1766163083921,0.00572,88374.0,88365.0,0.98590322]
[1766163084302,0.00572,88385.0,88368.0,0.01131631]
[1766163084472,0.00582861,88385.0,88368.0,0.01131631]
[1766163084680,0.01131426,88384.0,88367.0,0.99721858]
[1766163084880,0.00582861,88385.0,88369.0,0.01131618]
[1766163085017,0.00582861,88385.0,88371.0,0.01131592]
[1766163085225,0.00582861,88385.0,88376.0,0.01131528]